[Event "Central-SRB chT 2018"]
[Site "Kragujevac"]
[Date "2018.09.15"]
[Round "2"]
[White "Soysal, Serkan"]
[Black "Ivanov, Mikhail M"]
[Result "1/2-1/2"]
[ECO "D20"]
[WhiteElo "2404"]
[BlackElo "2367"]
[Annotator "ChessBase"]
[PlyCount "44"]
[EventDate "2018.09.14"]
[EventType "team-tourn"]
[EventCountry "SRB"]
[SourceTitle "playchess.com"]
[Source "ChessBase"]
[SourceQuality "1"]
[TimeControl "40/5400+30:1800+30"]

1. d4 d5 2. c4 dxc4 3. e3 e5 4. Bxc4 Nc6 5. Nf3 e4 6. Nfd2 Qg5 7. Nxe4 Qxg2 8. Ng3 Nf6 9. Bf1 Qd5 10. Nc3 Bb4 11. Bd2 Qd8 12. a3 Be7 13. Bc4 O-O 14. Nh5 g6 15. Ng3 Bg4 16. f3 Bh3 17. Qe2 a6 18. Nce4 Nd5 19. Nc3 Nb6 20. Ba2 Kh8 21. O-O-O f5 22. Qf2 f4 1/2-1/2

[Event "Central-SRB chT 2018"]
[Site "Kragujevac"]
[Date "2018.09.15"]
[Round "2"]
[White "Zivkovic, Ivan B"]
[Black "Djosic, Slavoljub"]
[Result "1/2-1/2"]
[ECO "C55"]
[WhiteElo "2349"]
[BlackElo "2315"]
[Annotator "NA"]
[PlyCount "36"]
[EventDate "2018.09.14"]
[EventType "team-tourn"]
[EventCountry "SRB"]
[SourceTitle "playchess.com"]
[Source "ChessBase"]
[SourceQuality "1"]
[TimeControl "40/5400+30:1800+30"]

1. e4 e5 2. Nf3 Nc6 3. d4 exd4 4. Bc4 Nf6 5. e5 Ng4 6. Qe2 Qe7 7. Bf4 {[#]} d6 $1 {LiveBook: 49 Games} 8. exd6 $1 Qxe2+ 9. Bxe2 Bxd6 10. Bxd6 cxd6 11. Na3 O-O 12. Nb5 d3 13. cxd3 Nb4 14. Nfd4 Ne5 15. Kd2 Rd8 $14 16. f4 Nec6 17. Bf3 a6 18. Nxc6 Nxc6 1/2-1/2

[Event "Central-SRB chT 2018"]
[Site "Kragujevac"]
[Date "2018.09.15"]
[Round "2"]
[White "Ilic, Zoran S"]
[Black "Nestorovic, Lazar"]
[Result "1-0"]
[ECO "B48"]
[WhiteElo "2307"]
[BlackElo "2353"]
[Annotator "NA"]
[PlyCount "73"]
[EventDate "2018.09.14"]
[EventType "team-tourn"]
[EventCountry "SRB"]
[SourceTitle "playchess.com"]
[Source "ChessBase"]
[SourceQuality "1"]
[TimeControl "40/5400+30:1800+30"]

1. e4 {[%emt 0:00:00]} c5 {[%emt 0:00:00]} 2. Nf3 {[%emt 0:00:00]} e6 {[%emt 0:00:00]} 3. d4 {[%emt 0:00:53]} cxd4 {[%emt 0:00:00]} 4. Nxd4 {[%emt 0:00:04]} Nc6 {[%emt 0:00:14]} 5. Nc3 {[%emt 0:00:18]} Qc7 {[%emt 0:00:49]} 6. Be3 {[%emt 0:01:02]} a6 {[%emt 0:00:42] LiveBook: 6810 Games} 7. a3 {[%emt 0:04:11]} b5 {[%emt 0:02:02]} 8. Qd2 {[%emt 0:01:17] B48: Sicilian: Taimanov: 5 Nc3 Qc7 6 Be3 a6 without Be2} (8. Nxc6 Qxc6 9. Bd3 Bb7 10. O-O Nf6 11. Re1 Rc8 12. Qf3 Bd6 13. Bd4 Qc7 14. Bxf6 gxf6 15. Qh5 Be5 16. Nd1 Ke7 17. c3 Rcg8 18. Ne3 Rg5 19. Qh3 {0-1 (47) Carlsen,M (2837)-Ding,L (2774) Saint Louis 2017}) 8... Bb7 {[%emt 0:07:38]} 9. f3 {[%emt 0:00:23]} Nf6 {[%emt 0:02:05]} 10. g4 {[%emt 0:03:15]} h6 {[%emt 0:04:57]} 11. O-O-O $146 {[%emt 0:05:53]} ({Predecessor:} 11. Nxc6 Bxc6 12. Bf4 e5 13. Be3 b4 14. axb4 Bxb4 {0-1 (24) Sanchis Hernandez,S (1768)-Castella Garcia,F (2325) Xativa 2016}) 11... Ne5 {[%emt 0:02:15]} 12. Kb1 {[%emt 0:04:59]} Rc8 {[%emt 0:03:43]} 13. Bf4 {[%emt 0:02:24]} Be7 {[%emt 0:11:23]} 14. h4 {[%emt 0:03:36]} d6 {[%emt 0:25:50]} 15. Rg1 {[%emt 0:06:16]} Nfd7 {[%emt 0:05:30]} 16. g5 {[%emt 0:01:04]} hxg5 {[%emt 0:01:04]} 17. Bxg5 {[%emt 0:02:36]} Nf6 {[%emt 0:02:24]} 18. f4 {[%emt 0:03:04]} Ned7 {[%emt 0:04:34]} 19. Bd3 {[%emt 0:12:05]} Qb6 {[%emt 0:07:19]} 20. Nb3 {[%emt 0:04:05]} Bc6 {[%emt 0:03:56]} 21. Qe2 {[%emt 0:04:11]} e5 {[%emt 0:01:13] [#]} (21... Bb7 $14) 22. Nd5 $1 {[%emt 0:02:27]} Bxd5 {[%emt 0:05:08]} 23. exd5 {[%emt 0:00:19]} Kf8 {[%emt 0:02:22]} 24. Bf5 {[%emt 0:02:16]} Re8 {[%emt 0:02:03]} 25. Qg2 {[%emt 0:06:22]} ({Inferior is} 25. Bxf6 Nxf6 26. fxe5 dxe5 $11) 25... g6 {[%emt 0:00:57]} 26. Bxd7 {[%emt 0:18:41]} Nxd7 {[%emt 0:00:09]} 27. f5 {[%emt 0:00:06]} Bxg5 {[%emt 0:02:50]} 28. fxg6 {[%emt 0:00:34]} Bf6 {[%emt 0:01:11]} 29. g7+ {[%emt 0:00:23]} Bxg7 {[%emt 0:00:07]} 30. Qxg7+ {[%emt 0:00:11]} Ke7 {[%emt 0:00:03]} 31. Qg5+ {[%emt 0:02:21]} f6 {[%emt 0:00:45]} 32. Qf5 {[%emt 0:00:15]} Kd8 {[%emt 0:01:17]} 33. h5 {[%emt 0:03:57]} Re7 {[%emt 0:00:47]} 34. Rg3 {[%emt 0:00:45]} Rh6 {[%emt 0:01:02]} 35. Rc3 {[%emt 0:01:28]} Nc5 {[%emt 0:00:31]} 36. Rg1 {[%emt 0:01:24]} Qc7 {[%emt 0:00:36]} 37. Nxc5 {[%emt 0:00:52]} 1-0

[Event "Central-SRB chT 2018"]
[Site "Kragujevac"]
[Date "2018.09.15"]
[Round "3"]
[White "Radovic, Janko"]
[Black "Radivojevic, Ivan"]
[Result "1-0"]
[ECO "B12"]
[WhiteElo "2405"]
[BlackElo "2360"]
[Annotator "ChessBase"]
[PlyCount "57"]
[EventDate "2018.09.14"]
[EventType "team-tourn"]
[EventCountry "SRB"]
[SourceTitle "playchess.com"]
[Source "ChessBase"]
[SourceQuality "1"]
[TimeControl "40/5400+30:1800+30"]

1. e4 {[%emt 0:00:00]} c6 {[%emt 0:00:50]} 2. d4 {[%emt 0:00:00]} d5 {[%emt 0:00:04]} 3. e5 {[%emt 0:00:00]} Bf5 {[%emt 0:00:05]} 4. h4 {[%emt 0:00:00]} Qb6 {[%emt 0:00:48]} 5. c4 {[%emt 0:01:53]} dxc4 {[%emt 0:00:06]} 6. Nc3 {[%emt 0:00:52]} Be6 {[%emt 0:00:31]} 7. Nf3 {[%emt 0:09:40]} Bd5 {[%emt 0:05:04]} 8. b3 {[%emt 0:04:28]} cxb3 {[%emt 0:04:58]} 9. Nxd5 {[%emt 0:06:07]} cxd5 {[%emt 0:01:15]} 10. Rb1 {[%emt 0:01:52]} e6 {[%emt 0:07:10]} 11. Rxb3 {[%emt 0:02:33]} Qc7 {[%emt 0:04:18]} 12. Bd2 {[%emt 0:08:59]} Nc6 {[%emt 0:01:40]} 13. Qb1 {[%emt 0:02:38]} Rb8 {[%emt 0:00:16]} 14. Bd3 {[%emt 0:04:08]} h5 {[%emt 0:17:10]} 15. O-O {[%emt 0:03:23]} Nge7 {[%emt 0:02:01]} 16. Rc1 {[%emt 0:02:06]} Qd7 {[%emt 0:05:13]} 17. a4 {[%emt 0:08:04]} Nd8 {[%emt 0:10:41]} 18. a5 {[%emt 0:02:51]} Rc8 {[%emt 0:02:41]} 19. a6 {[%emt 0:03:42]} bxa6 {[%emt 0:00:34]} 20. Bxa6 {[%emt 0:00:11]} Nec6 {[%emt 0:02:30]} 21. Bxc8 {[%emt 0:00:36]} Qxc8 {[%emt 0:00:05]} 22. Ba5 {[%emt 0:01:19]} Qd7 {[%emt 0:02:32]} 23. Bxd8 {[%emt 0:00:28]} Nxd8 {[%emt 0:00:02]} 24. Rbc3 {[%emt 0:03:04]} a5 {[%emt 0:01:20]} 25. Qb8 {[%emt 0:06:40]} Be7 {[%emt 0:06:56]} 26. Rc8 {[%emt 0:01:12]} Qa4 {[%emt 0:00:30]} 27. R1c7 {[%emt 0:00:56]} f6 {[%emt 0:02:50]} 28. Ra7 {[%emt 0:03:11]} Qa3 {[%emt 0:06:42]} 29. Qc7 {[%emt 0:00:59]} 1-0

[Event "Central-SRB chT 2018"]
[Site "Kragujevac"]
[Date "2018.09.15"]
[Round "3"]
[White "Zlatanovic, Boroljub"]
[Black "Radovanovic, Dusan"]
[Result "1/2-1/2"]
[ECO "A25"]
[WhiteElo "2371"]
[BlackElo "2321"]
[Annotator "ChessBase"]
[PlyCount "80"]
[EventDate "2018.09.14"]
[EventType "team-tourn"]
[EventCountry "SRB"]
[SourceTitle "playchess.com"]
[Source "ChessBase"]
[SourceQuality "1"]
[TimeControl "40/5400+30:1800+30"]

1. c4 e5 2. Nc3 {[%emt 0:00:00]} Nc6 {[%emt 0:05:44]} 3. g3 {[%emt 0:00:28]} Bc5 {[%emt 0:00:17]} 4. Bg2 {[%emt 0:00:08]} a6 {[%emt 0:00:16]} 5. e3 {[%emt 0:01:27]} d6 {[%emt 0:00:11]} 6. Nge2 {[%emt 0:00:23]} Ba7 {[%emt 0:00:21]} 7. Nd5 Nge7 8. O-O O-O 9. b3 {[%emt 0:17:04]} Bf5 {[%emt 0:15:28]} 10. d3 {[%emt 0:05:28]} Qd7 {[%emt 0:00:46]} 11. Bb2 {[%emt 0:01:07]} Rac8 {[%emt 0:11:23]} 12. d4 {[%emt 0:08:12]} f6 {[%emt 0:05:21]} 13. Qd2 {[%emt 0:04:40]} Nxd5 {[%emt 0:06:11]} 14. cxd5 {[%emt 0:01:42]} Ne7 {[%emt 0:00:11]} 15. e4 {[%emt 0:02:36]} Bh3 {[%emt 0:00:16]} 16. Rad1 {[%emt 0:10:31]} Ng6 {[%emt 0:03:25]} 17. Qd3 {[%emt 0:09:34]} Bxg2 {[%emt 0:10:55]} 18. Kxg2 {[%emt 0:00:02]} f5 {[%emt 0:01:05]} 19. dxe5 {[%emt 0:02:50]} dxe5 {[%emt 0:02:49]} 20. f3 {[%emt 0:01:22]} f4 {[%emt 0:02:32]} 21. Rc1 {[%emt 0:06:16]} Be3 {[%emt 0:05:57]} 22. Rc2 {[%emt 0:00:52]} Rf6 {[%emt 0:00:50]} 23. Bc1 {[%emt 0:02:00]} Bb6 {[%emt 0:02:57]} 24. Ba3 {[%emt 0:03:16]} h5 {[%emt 0:10:19]} 25. Bc5 {[%emt 0:04:57]} Bxc5 {[%emt 0:00:50]} 26. Rxc5 {[%emt 0:00:08]} Rcf8 {[%emt 0:00:15]} 27. Qc4 {[%emt 0:04:22]} R8f7 {[%emt 0:00:37]} 28. Qc3 {[%emt 0:09:30]} fxg3 {[%emt 0:03:02]} 29. hxg3 {[%emt 0:00:09]} Qe7 {[%emt 0:02:18]} 30. Qe3 {[%emt 0:01:39]} h4 {[%emt 0:01:02]} 31. g4 {[%emt 0:02:00]} h3+ {[%emt 0:01:45]} 32. Kh2 {[%emt 0:00:59]} Rxf3 {[%emt 0:06:34]} 33. Rxf3 {[%emt 0:00:19]} Rxf3 {[%emt 0:00:01]} 34. Qxf3 {[%emt 0:00:19]} Qxc5 {[%emt 0:00:07]} 35. Qf5 {[%emt 0:01:33]} Nh4 {[%emt 0:01:54]} 36. Qh5 {[%emt 0:00:51]} Qf2+ {[%emt 0:01:32]} 37. Kxh3 {[%emt 0:00:02]} Nf3 {[%emt 0:00:43]} 38. Qe8+ {[%emt 0:00:06]} Kh7 {[%emt 0:00:02]} 39. Qh5+ {[%emt 0:00:04]} Kg8 {[%emt 0:00:05]} 40. Qe8+ {[%emt 0:00:00]} Kh7 {[%emt 0:00:00]} 1/2-1/2

[Event "Central-SRB chT 2018"]
[Site "Kragujevac"]
[Date "2018.09.15"]
[Round "3"]
[White "Ivanov, Mikhail M"]
[Black "Popchev, Milko"]
[Result "1/2-1/2"]
[ECO "A41"]
[WhiteElo "2367"]
[BlackElo "2267"]
[Annotator "ChessBase"]
[PlyCount "23"]
[EventDate "2018.09.14"]
[EventType "team-tourn"]
[EventCountry "SRB"]
[SourceTitle "playchess.com"]
[Source "ChessBase"]
[SourceQuality "1"]
[TimeControl "40/5400+30:1800+30"]

1. d4 {[%emt 0:00:00]} d6 {[%emt 0:00:21]} 2. g3 {[%emt 0:00:00]} g6 {[%emt 0:01:45]} 3. Bg2 {[%emt 0:00:00]} Bg7 {[%emt 0:00:21]} 4. Nf3 {[%emt 0:01:19]} Nd7 {[%emt 0:01:43]} 5. O-O {[%emt 0:01:17]} e5 {[%emt 0:01:03]} 6. e4 {[%emt 0:01:21]} Ngf6 {[%emt 0:00:54]} 7. Re1 {[%emt 0:00:15]} O-O {[%emt 0:01:09]} 8. h3 {[%emt 0:01:54]} Re8 {[%emt 0:02:29]} 9. Nc3 {[%emt 0:00:14]} b6 {[%emt 0:02:22]} 10. d5 {[%emt 0:04:40]} Bb7 {[%emt 0:04:21]} 11. Nd2 {[%emt 0:02:02]} Bh6 {[%emt 0:01:58]} 12. Nc4 {[%emt 0:00:31]} 1/2-1/2

[Event "Central-SRB chT 2018"]
[Site "Kragujevac"]
[Date "2018.09.15"]
[Round "3"]
[White "Kostic, Vladimir G"]
[Black "Radovanovic, Jovica"]
[Result "1/2-1/2"]
[ECO "B24"]
[WhiteElo "2334"]
[BlackElo "2322"]
[Annotator "NA"]
[PlyCount "35"]
[EventDate "2018.09.14"]
[EventType "team-tourn"]
[EventCountry "SRB"]
[SourceTitle "playchess.com"]
[Source "ChessBase"]
[SourceQuality "1"]
[TimeControl "40/5400+30:1800+30"]

{[%evp 8,25,15,32767,32767,32767,32767,-8,32767,-10,-15,-15,6,-9,-8,-7,32767,-10,32767,0]} 1. e4 {[%emt 0:00:00]} c5 {[%emt 0:00:00]} 2. Nc3 {[%emt 0:00:00]} Nc6 {[%emt 0:00:00]} 3. Bb5 {[%emt 0:00:00]} Nd4 {[%emt 0:00:00]} 4. Bc4 {[%emt 0:00:00]} e6 {[%emt 0:00:42]} 5. Nf3 {[%emt 0:01:44]} Nf6 {[%emt 0:00:28]} 6. O-O {[%emt 0:01:55]} a6 {[%emt 0:00:35]} 7. Re1 {[%emt 0:02:33]} b5 {[%emt 0:05:06]} 8. Bf1 {[%emt 0:01:17]} Bb7 {[%emt 0:00:32]} 9. d3 {[%emt 0:01:15]} Nxf3+ {[%emt 0:05:13] LiveBook: 4 Games} 10. Qxf3 {[%emt 0:00:14]} Be7 {[%emt 0:02:44]} 11. Qg3 {[%emt 0:01:08]} O-O {[%emt 0:03:42]} 12. Be2 $11 {[%emt 0:14:56]} Kh8 {[%emt 0:05:11]} 13. Bf3 {[%emt 0:06:30]} Ne8 {[%emt 0:05:38]} 14. Bh5 {[%emt 0:14:00]} Nf6 {[%emt 0:11:30]} 15. Bf3 {[%emt 0:04:17]} Ne8 {[%emt 0:01:14]} 16. Bh5 {[%emt 0:03:37]} Nf6 {[%emt 0:04:35]} 17. Bf3 {[%emt 0:08:24]} Ne8 18. Bh5 1/2-1/2

[Event "Central-SRB chT 2018"]
[Site "Kragujevac"]
[Date "2018.09.15"]
[Round "3"]
[White "Sandic, Vladeta"]
[Black "Pantelic, Sasa"]
[Result "1/2-1/2"]
[ECO "E71"]
[WhiteElo "2324"]
[BlackElo "2294"]
[Annotator "NA"]
[PlyCount "54"]
[EventDate "2018.09.14"]
[EventType "team-tourn"]
[EventCountry "SRB"]
[SourceTitle "playchess.com"]
[Source "ChessBase"]
[SourceQuality "1"]
[TimeControl "40/5400+30:1800+30"]

1. d4 {[%emt 0:00:00]} Nf6 {[%emt 0:00:00]} 2. c4 {[%emt 0:00:00]} g6 {[%emt 0:00:00]} 3. Nc3 {[%emt 0:00:00]} Bg7 {[%emt 0:00:00]} 4. e4 {[%emt 0:00:08]} d6 {[%emt 0:00:00]} 5. h3 {[%emt 0:00:32]} O-O {[%emt 0:01:08]} 6. Nf3 {[%emt 0:00:14]} e5 {[%emt 0:00:26]} 7. d5 {[%emt 0:01:45]} Nbd7 {[%emt 0:00:57]} 8. Bg5 {[%emt 0:02:27]} h6 {[%emt 0:02:12]} 9. Be3 {[%emt 0:00:17]} Nc5 {[%emt 0:00:12]} 10. Nd2 {[%emt 0:00:43] LiveBook: 317 Games} a5 {[%emt 0:00:11]} 11. Be2 {[%emt 0:01:27]} b6 {[%emt 0:01:02]} 12. g4 {[%emt 0:03:21]} Qd7 {[%emt 0:03:47]} 13. Rg1 {[%emt 0:04:09]} Bb7 {[%emt 0:10:53]} 14. h4 {[%emt 0:01:15]} Nh7 {[%emt 0:00:56]} 15. Nb3 $16 {[%emt 0:05:31]} Qe7 {[%emt 0:06:26]} 16. g5 {[%emt 0:08:58]} h5 {[%emt 0:04:56]} 17. Qc2 {[%emt 0:03:28]} c6 {[%emt 0:02:22]} 18. Nxc5 {[%emt 0:02:08]} bxc5 {[%emt 0:00:08]} 19. O-O-O {[%emt 0:01:11]} cxd5 {[%emt 0:00:17]} 20. cxd5 {[%emt 0:03:56]} Ba6 {[%emt 0:03:36]} 21. Bxa6 {[%emt 0:02:06]} Rxa6 {[%emt 0:00:06]} 22. Nb5 {[%emt 0:06:29]} a4 {[%emt 0:08:37]} 23. Na3 {[%emt 0:00:47]} Rb8 {[%emt 0:01:43]} 24. Nc4 {[%emt 0:01:17]} Nf8 {[%emt 0:00:36]} 25. Rd3 {[%emt 0:01:41]} Nd7 {[%emt 0:02:01]} 26. Ra3 {[%emt 0:03:28]} Rba8 {[%emt 0:02:15]} 27. Bd2 {[%emt 0:02:14]} Bf8 1/2-1/2

[Event "Central-SRB chT 2018"]
[Site "Kragujevac"]
[Date "2018.09.15"]
[Round "3"]
[White "Jesic, Dusan"]
[Black "Zivkovic, Dejan"]
[Result "1/2-1/2"]
[ECO "A01"]
[WhiteElo "2322"]
[BlackElo "2290"]
[Annotator "NA"]
[PlyCount "42"]
[EventDate "2018.09.14"]
[EventType "team-tourn"]
[EventCountry "SRB"]
[SourceTitle "playchess.com"]
[Source "ChessBase"]
[SourceQuality "1"]
[TimeControl "40/5400+30:1800+30"]

1. b3 {[%emt 0:00:00]} e5 {[%emt 0:05:16]} 2. Bb2 {[%emt 0:00:00]} Nc6 {[%emt 0:01:12]} 3. e3 {[%emt 0:01:15]} d5 {[%emt 0:02:20]} 4. Bb5 {[%emt 0:03:47]} f6 {[%emt 0:11:11]} 5. d4 {[%emt 0:12:12]} exd4 {[%emt 0:07:07] LiveBook: 6 Games} 6. exd4 {[%emt 0:06:49]} Be6 {[%emt 0:03:19]} 7. Nf3 {[%emt 0:01:38]} Qd7 {[%emt 0:04:26]} 8. O-O $11 {[%emt 0:06:08]} Nge7 {[%emt 0:09:38]} 9. Nc3 {[%emt 0:00:17]} Ng6 {[%emt 0:02:02]} 10. Re1 {[%emt 0:01:30]} O-O-O {[%emt 0:07:27]} 11. Na4 {[%emt 0:00:10]} Bg4 {[%emt 0:09:06]} 12. Re3 {[%emt 0:03:46]} Nh4 {[%emt 0:03:25]} 13. Be2 {[%emt 0:01:54]} Bxf3 {[%emt 0:02:56]} 14. Bxf3 {[%emt 0:00:11]} Nxf3+ {[%emt 0:00:17]} 15. Qxf3 {[%emt 0:02:15]} Bd6 {[%emt 0:01:00]} 16. Rae1 {[%emt 0:03:05]} Rhe8 {[%emt 0:04:35]} 17. g3 {[%emt 0:07:18]} Rxe3 {[%emt 0:01:06]} 18. Rxe3 {[%emt 0:00:11]} Bf8 {[%emt 0:01:02]} 19. Qe2 {[%emt 0:04:58]} f5 {[%emt 0:03:29]} 20. f4 {[%emt 0:05:53]} g6 {[%emt 0:01:32]} 21. c3 {[%emt 0:01:16]} Bd6 {[%emt 0:01:40]} 1/2-1/2

[Event "Central-SRB chT 2018"]
[Site "Kragujevac"]
[Date "2018.09.15"]
[Round "3"]
[White "Colovic, Dusan"]
[Black "Ivanovic, Dragutin"]
[Result "*"]
[ECO "A40"]
[WhiteElo "2296"]
[BlackElo "2307"]
[Annotator "NA"]
[PlyCount "33"]
[EventDate "2018.09.14"]
[EventType "team-tourn"]
[EventCountry "SRB"]
[SourceTitle "playchess.com"]
[Source "ChessBase"]
[SourceQuality "1"]
[TimeControl "40/5400+30:1800+30"]

1. d4 {[%emt 0:00:00]} d5 {[%emt 0:00:46]} 2. Bf4 {[%emt 0:00:00]} Bf5 {[%emt 0:01:48]} 3. e3 {[%emt 0:00:15]} e6 {[%emt 0:00:16]} 4. Nc3 {[%emt 0:01:12]} Bd6 {[%emt 0:01:52]} 5. Nf3 {[%emt 0:01:51]} Bxf4 {[%emt 0:03:27]} 6. exf4 {[%emt 0:00:04]} Qd6 {[%emt 0:00:34]} 7. Qd2 {[%emt 0:00:19]} a6 {[%emt 0:14:37]} 8. Ne5 {[%emt 0:03:51]} h6 {[%emt 0:08:06]} 9. g4 {[%emt 0:02:04]} Bh7 {[%emt 0:00:38]} 10. Bg2 {[%emt 0:00:12]} Ne7 {[%emt 0:04:00]} 11. O-O-O {[%emt 0:03:33]} Nd7 $11 {[%emt 0:05:33]} 12. Rhe1 {[%emt 0:03:40]} Nxe5 {[%emt 0:04:23]} 13. fxe5 {[%emt 0:02:50]} Qb4 {[%emt 0:01:19]} 14. f4 {[%emt 0:07:35]} O-O-O {[%emt 0:00:26]} 15. Ne2 {[%emt 0:08:35]} Qxd2+ {[%emt 0:00:59]} 16. Kxd2 {[%emt 0:00:10]} b6 {[%emt 0:07:33]} 17. Rc1 {[%emt 0:05:22]} *

[Event "Central-SRB chT 2018"]
[Site "Kragujevac"]
[Date "2018.09.16"]
[Round "4"]
[White "Atakisi, Umut"]
[Black "Ristic, Nenad"]
[Result "1-0"]
[ECO "B52"]
[WhiteElo "2397"]
[BlackElo "2359"]
[Annotator "NA"]
[PlyCount "49"]
[EventDate "2018.09.14"]
[EventType "team-tourn"]
[EventCountry "SRB"]
[SourceTitle "playchess.com"]
[Source "ChessBase"]
[SourceQuality "1"]
[TimeControl "40/5400+30:1800+30"]

1. e4 {[%emt 0:00:00]} c5 {[%emt 0:00:12]} 2. Nf3 {[%emt 0:00:00]} d6 {[%emt 0:00:06]} 3. Bb5+ {[%emt 0:00:00]} Bd7 {[%emt 0:00:07]} 4. Bxd7+ {[%emt 0:00:00]} Nxd7 {[%emt 0:00:10]} 5. O-O {[%emt 0:00:09]} Ngf6 {[%emt 0:00:08]} 6. Qe2 {[%emt 0:00:09]} e6 {[%emt 0:00:07]} 7. c3 {[%emt 0:00:26]} Be7 {[%emt 0:00:22]} 8. d4 {[%emt 0:00:34]} O-O {[%emt 0:02:59]} 9. e5 $11 {[%emt 0:11:13] LiveBook: 41 Games} Ne8 {[%emt 0:01:26]} 10. Qe4 {[%emt 0:24:24]} cxd4 {[%emt 0:07:54]} 11. cxd4 {[%emt 0:00:36]} dxe5 {[%emt 0:00:29]} 12. dxe5 {[%emt 0:00:13]} Nc5 {[%emt 0:00:10]} 13. Qg4 {[%emt 0:00:21]} Qd3 {[%emt 0:00:49]} 14. Nc3 {[%emt 0:01:01]} Rd8 {[%emt 0:01:55]} 15. Be3 {[%emt 0:05:43]} Nc7 {[%emt 0:01:50]} 16. Rad1 {[%emt 0:12:47]} Qc2 {[%emt 0:11:28]} 17. Rc1 {[%emt 0:02:51]} Qd3 {[%emt 0:13:31]} 18. Bxc5 {[%emt 0:03:30]} Bxc5 {[%emt 0:00:15]} 19. Na4 {[%emt 0:01:27]} b6 {[%emt 0:01:20]} 20. b4 {[%emt 0:01:31]} Nb5 {[%emt 0:07:27]} 21. bxc5 {[%emt 0:02:00]} Nd4 {[%emt 0:00:07]} 22. Nxd4 {[%emt 0:06:36]} Rxd4 {[%emt 0:00:16]} 23. Rfd1 {[%emt 0:00:19]} Rxg4 {[%emt 0:01:06]} 24. Rxd3 {[%emt 0:00:07]} Rxa4 {[%emt 0:00:13]} 25. c6 {[%emt 0:00:06]} 1-0

[Event "Central-SRB chT 2018"]
[Site "Kragujevac"]
[Date "2018.09.16"]
[Round "4"]
[White "Rajkovic, Dusan"]
[Black "Todorovic, Nenad I"]
[Result "1/2-1/2"]
[ECO "E15"]
[WhiteElo "2322"]
[BlackElo "2291"]
[Annotator "ChessBase"]
[PlyCount "76"]
[EventDate "2018.09.14"]
[EventType "team-tourn"]
[EventCountry "SRB"]
[SourceTitle "playchess.com"]
[Source "ChessBase"]
[SourceQuality "1"]
[TimeControl "40/5400+30:1800+30"]

1. d4 Nf6 2. c4 e6 3. Nf3 b6 4. g3 Ba6 5. b3 Bb4+ 6. Bd2 Be7 7. Nc3 {[%emt 0:09:07]} c6 {[%emt 0:09:20]} 8. e4 {[%emt 0:04:31]} d5 {[%emt 0:05:16]} 9. Qc2 {[%emt 0:05:56]} dxe4 {[%emt 0:03:20]} 10. Nxe4 {[%emt 0:00:10]} Bb7 {[%emt 0:06:12]} 11. Bd3 {[%emt 0:17:35]} Nbd7 {[%emt 0:01:19]} 12. O-O {[%emt 0:18:00]} Nxe4 {[%emt 0:05:43]} 13. Bxe4 {[%emt 0:00:06]} Nf6 {[%emt 0:00:06]} 14. Rfe1 {[%emt 0:03:07]} Nxe4 {[%emt 0:02:28]} 15. Qxe4 {[%emt 0:00:06]} O-O {[%emt 0:03:29]} 16. Rac1 {[%emt 0:01:45]} Re8 {[%emt 0:07:54]} 17. Bf4 {[%emt 0:03:01]} Ba3 {[%emt 0:12:34]} 18. Rcd1 {[%emt 0:12:12]} f6 {[%emt 0:01:57]} 19. h4 {[%emt 0:14:46]} Qd7 {[%emt 0:02:03]} 20. c5 {[%emt 0:01:55]} Qd5 {[%emt 0:01:30]} 21. Bd6 {[%emt 0:00:33]} Bb4 {[%emt 0:04:52]} 22. Re3 {[%emt 0:00:16]} bxc5 {[%emt 0:20:08]} 23. Bxc5 {[%emt 0:01:25]} Bxc5 {[%emt 0:00:50]} 24. Qxd5 {[%emt 0:00:02]} cxd5 {[%emt 0:00:12]} 25. dxc5 {[%emt 0:00:07]} e5 {[%emt 0:00:08]} 26. b4 {[%emt 0:00:43]} Bc6 {[%emt 0:00:55]} 27. b5 {[%emt 0:04:32]} Bxb5 {[%emt 0:00:17]} 28. Rxd5 {[%emt 0:00:01]} Red8 {[%emt 0:01:59]} 29. Rd2 {[%emt 0:00:12]} Rac8 {[%emt 0:01:56]} 30. Rc3 {[%emt 0:00:23]} Kf7 {[%emt 0:01:03]} 31. g4 {[%emt 0:00:59]} Ke6 {[%emt 0:01:10]} 32. Kg2 {[%emt 0:00:38]} Rxd2 {[%emt 0:04:12]} 33. Nxd2 {[%emt 0:00:01]} Kd5 {[%emt 0:00:09]} 34. Nb3 {[%emt 0:00:40]} Bc4 {[%emt 0:00:43]} 35. h5 {[%emt 0:01:31]} Bxb3 {[%emt 0:01:37]} 36. Rxb3 {[%emt 0:00:03]} Rc7 {[%emt 0:00:28]} 37. Rb5 {[%emt 0:00:09]} Kc4 {[%emt 0:03:38]} 38. a4 {[%emt 0:00:08]} Kd5 {[%emt 0:00:53]} 1/2-1/2

[Event "Central-SRB chT 2018"]
[Site "Kragujevac"]
[Date "2018.09.16"]
[Round "4"]
[White "Simic, Dragisa"]
[Black "Irizanin, Radoje"]
[Result "1/2-1/2"]
[ECO "B13"]
[WhiteElo "2299"]
[BlackElo "2296"]
[Annotator "NA"]
[PlyCount "54"]
[EventDate "2018.09.14"]
[EventType "team-tourn"]
[EventCountry "SRB"]
[SourceTitle "playchess.com"]
[Source "ChessBase"]
[SourceQuality "1"]
[TimeControl "40/5400+30:1800+30"]

1. e4 {[%emt 0:00:46]} c6 {[%emt 0:00:00]} 2. d4 {[%emt 0:03:58]} d5 {[%emt 0:00:00]} 3. exd5 {[%emt 0:00:07]} cxd5 {[%emt 0:00:35]} 4. c4 {[%emt 0:00:07]} e6 {[%emt 0:00:43]} 5. Nf3 {[%emt 0:00:14]} Nf6 {[%emt 0:00:23]} 6. Nc3 {[%emt 0:00:15]} Bb4 {[%emt 0:01:05]} 7. cxd5 {[%emt 0:02:19] LiveBook: 2030 Games} Nxd5 {[%emt 0:01:12]} 8. Qc2 {[%emt 0:02:03]} O-O {[%emt 0:07:21]} 9. Bd3 {[%emt 0:01:07] B14: Caro-Kann (Panow-Angriff)} Nf6 {[%emt 0:00:36]} (9... h6 10. O-O Nc6 11. a3 Bd6 12. Re1 Nce7 13. Qe2 Nf6 14. Ne4 Nf5 15. Nxd6 Qxd6 16. Bd2 a5 17. Qe5 Qxe5 18. dxe5 Nd5 19. Rac1 b6 {½-½ (58) Rakhmanov,A (2627)-Nihal,S (2551) Ankara 2018}) 10. Bg5 {[%emt 0:03:44]} h6 {[%emt 0:02:39]} 11. Be3 $146 {[%emt 0:00:45]} ({Vorgänger:} 11. Bh4 Nc6 12. Rd1 Be7 13. Qe2 Nb4 14. Bb1 Nfd5 15. Bg3 b6 16. O-O Ba6 17. Nb5 Nf6 18. Rfe1 {½-½ (18) Sieiro Gonzalez,L (2385)-Valiente,C (2335) Asuncion 1995}) 11... b6 {[%emt 0:03:20]} 12. O-O {[%emt 0:01:08]} Bb7 {[%emt 0:01:57]} 13. Ne5 {[%emt 0:01:11]} Nbd7 {[%emt 0:04:26]} 14. Nxd7 {[%emt 0:07:38]} Qxd7 {[%emt 0:05:36]} 15. a3 {[%emt 0:03:22]} Bd6 {[%emt 0:03:05]} 16. f3 {[%emt 0:06:58]} Rac8 {[%emt 0:03:57]} 17. Qd2 {[%emt 0:04:16]} Nd5 {[%emt 0:07:19]} 18. Nxd5 {[%emt 0:02:25]} Bxd5 {[%emt 0:02:06]} 19. Rac1 {[%emt 0:00:25]} Rxc1 {[%emt 0:05:28]} 20. Rxc1 {[%emt 0:00:45]} Rc8 {[%emt 0:01:21]} 21. Be4 {[%emt 0:07:07]} Rc6 {[%emt 0:07:38]} 22. Bxd5 {[%emt 0:06:44]} exd5 {[%emt 0:01:27]} 23. Bf4 {[%emt 0:01:41]} Bf8 {[%emt 0:04:30]} 24. g4 {[%emt 0:00:55]} Rxc1+ {[%emt 0:01:17]} 25. Qxc1 {[%emt 0:00:19]} f5 {[%emt 0:00:54]} 26. h3 {[%emt 0:01:31]} fxg4 {[%emt 0:03:59]} 27. hxg4 h5 $11 1/2-1/2